fUSD/lending_fUSD_20240322
["ID","MTS","AMOUNT","RATE_DAILY","PERIOD"]
[320041899,1711110650618,-800.0,0.00025918,2]
[320041900,1711110650628,-2199.7066512,0.00025922,2]
[320041901,1711110650637,-1755.27473821,0.00025929,2]
[320041902,1711110650647,-572.59298777,0.00025932,2]
[320041903,1711110650656,-205.23,0.00025935,15]
[320041904,1711110650666,-150.52,0.00025935,2]
[320041905,1711110650676,-150.01,0.00025945,2]
[320041906,1711110650685,-1388.41350619,0.00025945,2]
[320041907,1711110650695,-2199.88387849,0.00025945,2]
[320041908,1711110650705,-28642.88102481,0.00025945,2]
[320041909,1711110650716,-155.0,0.00025945,2]
[320041910,1711110650726,-300.87045004,0.00025945,2]
[320041911,1711110650735,-155.0,0.00025945,2]
[320041912,1711110650745,-220.75350523,0.00025945,2]
[320041913,1711110650754,-205.20911928,0.00025945,2]
[320041914,1711110650764,-156.23262797,0.00025945,2]
[320041915,1711110650773,-40928.45946333,0.00025945,2]
[320041927,1711110969006,341.93,0.00025391,120]
[320041935,1711111094601,376.0,0.00026069,120]
[320041959,1711111625118,-205.4134644,0.0001529,2]
[320041960,1711111625142,-535.66375841,0.00015291,2]
[320041961,1711111625165,-155.0,0.00015291,2]
[320041962,1711111625187,-407.12895338,0.00015291,2]
[320041963,1711111625210,-205.06000324,0.00015292,2]
[320041964,1711111625234,-3360.64209275,0.00015292,2]
[320041965,1711111625260,-1380.27067306,0.00015293,2]
[320041966,1711111625288,-198.99790327,0.00015293,2]
[320041967,1711111625312,-161.23540229,0.00015311,2]
[320041968,1711111625336,-150.0,0.00015397,2]
[320041969,1711111625359,-2056.47379411,0.00015408,2]
[320041970,1711111625385,-526.61,0.00015418,2]
[320041971,1711111625409,-300.0,0.00016607,2]
[320041972,1711111625433,-150.0,0.00016661,2]
[320041973,1711111625457,-170.55,0.00016712,2]
[320041974,1711111625480,-416.49,0.00016964,2]
[320041975,1711111625503,-250.0,0.00017094,2]
[320041976,1711111625529,-4079.61,0.00017094,2]
[320041977,1711111625552,-253.28,0.00017368,2]
[320041978,1711111625575,-250.0,0.0001741,2]
[320041979,1711111625596,-118788.73050342,0.00017461,2]
[320041980,1711111625618,-5000.0,0.00017462,2]
[320041981,1711111625637,-5000.0,0.00017462,2]
[320041982,1711111625658,-5000.0,0.00017462,2]
[320041983,1711111625678,-5000.0,0.00017462,2]
[320041984,1711111625700,-4335.3434496,0.00017462,2]
[320041985,1711111625742,-664.6565504,0.00017462,2]
[320041986,1711111625766,-151.97,0.00017517,2]
[320041987,1711111625792,-526.61,0.00017682,2]
[320041988,1711111625814,-962.36349289,0.000178,2]
[320041989,1711111625834,-1038.07876859,0.000178,2]
[320041990,1711111625853,-159.06,0.00017808,10]
[320041991,1711111625873,-12477.64413937,0.00017898,2]
[320041992,1711111625892,-3621.72335727,0.00017899,2]
[320041993,1711111625912,-4986.3621397,0.000179,2]
[320041994,1711111633156,-2976.15624937,0.0001529,2]
[320041995,1711111633177,-250.0,0.00016768,2]
[320041996,1711111633198,-95013.6378603,0.000179,2]
[320041997,1711111633220,-354.36679867,0.000179,2]
[320041998,1711111633240,-354.36679852,0.000179,2]
[320041999,1711111633261,-1000.0,0.00017909,2]
[320042000,1711111633284,-167.2,0.0001822,2]
[320042001,1711111633304,-292.21,0.00018223,2]
[320042002,1711111633324,-354.36679852,0.00018253,2]
[320042003,1711111633344,-44250.2854,0.00018278,2]
[320042004,1711111633367,-1278.4797953,0.00018278,2]
[320042005,1711111633387,-11747.74515094,0.00018378,2]
[320042006,1711111637137,-28018.97124906,0.00018378,2]
[320042007,1711111637158,-151.97,0.00018393,2]
[320042008,1711111637180,-341.93,0.00018466,2]
[320042009,1711111637201,-654.48701067,0.00018499,5]
[320042010,1711111637222,-21917.17920415,0.000185,2]
[320042011,1711111652091,-8713.7605,0.00017799,2]
[320042012,1711111652110,-1377.88932694,0.00018376,2]
[320042013,1711111652130,-241.47809661,0.00018376,2]
[320042014,1711111652149,-25317.8216361,0.00018377,2]
[320042015,1711111654165,-3521.77841492,0.00018377,2]
[320042041,1711111831810,-155.0,0.00017189,2]
[320042042,1711111831819,-473.94,0.00017192,2]
[320042043,1711111832102,-31553.73624769,0.00017799,2]
[320042048,1711111832141,-4751.5215728,0.00017799,2]
[320042053,1711111832182,-450.464,0.00017799,2]
[320042066,1711111832264,-562.43544538,0.00017799,2]
[320042068,1711111832276,-1146.64309624,0.00017799,2]
[320042069,1711111832289,-61535.19963789,0.00017799,2]
[320042070,1711111832298,-4464.10620978,0.00018377,2]
[320042073,1711111832328,-686.79457998,0.00018377,2]
[320042074,1711111832341,-6141.86516132,0.00018377,2]
[320042075,1711111832351,-301.21177878,0.00018422,2]
[320042076,1711111832360,-205.05509724,0.00018498,2]
[320042077,1711111832370,-348.90519351,0.00018498,2]
[320042078,1711111832380,-1837.57146281,0.00018498,2]
[320042079,1711111832389,-198.76708298,0.00018499,2]
[320042080,1711111832399,-1197.30658292,0.00018499,2]
[320042081,1711111832408,-85462.16296463,0.000185,2]
[320042096,1711111837745,-407.12895338,0.00017188,2]
[320042098,1711111837754,-23729.99104657,0.000185,2]
[320042100,1711111837766,-108857.69218133,0.000185,2]
[320042106,1711111837811,-5032.97460332,0.000185,2]
[320042108,1711111837820,-167.0,0.00018522,2]
[320042110,1711111837830,-167.74,0.00018618,2]
[320042111,1711111837839,-3603.0,0.000187,2]
[320042112,1711111837848,-482.28576155,0.000187,2]
[320042113,1711111837864,-306.71423845,0.000187,2]
[320042114,1711111837873,-301.21177874,0.00018812,2]
[320042115,1711111837882,-161.14363584,0.00019,10]
[320042116,1711111837891,-262.18841445,0.00019,2]
[320042117,1711111837901,-262.18841445,0.00019,2]
[320042118,1711111837910,-262.18841445,0.00019,2]
[320042119,1711111837920,-262.18841445,0.00019,2]
[320042120,1711111837929,-262.18841445,0.00019,2]
[320042121,1711111837939,-262.18841445,0.00019,2]
[320042122,1711111837948,-262.18841445,0.00019,2]
[320042123,1711111837957,-262.18841445,0.00019,2]
[320042124,1711111837969,-262.18841445,0.00019,2]
[320042125,1711111837979,-262.18841445,0.00019,2]
[320042126,1711111837988,-262.18841445,0.00019,2]
[320042127,1711111837997,-262.18841445,0.00019,2]
[320042128,1711111838007,-262.18841445,0.00019,2]
[320042129,1711111838016,-262.18841445,0.00019,2]
[320042130,1711111838026,-262.18841445,0.00019,2]
[320042131,1711111838035,-262.18841445,0.00019,2]
[320042132,1711111838044,-262.18841445,0.00019,2]
[320042133,1711111838053,-262.18841445,0.00019,2]
[320042134,1711111838063,-262.18841445,0.00019,2]
[320042136,1711111838072,-262.18841445,0.00019,2]
[320042138,1711111838083,-262.18841445,0.00019,2]
[320042139,1711111838096,-262.18841445,0.00019,2]
[320042141,1711111838105,-262.18841445,0.00019,2]
[320042143,1711111838115,-262.18841445,0.00019,2]
[320042145,1711111838124,-262.18841445,0.00019,2]
[320042147,1711111838136,-262.18841445,0.00019,2]
[320042149,1711111838145,-262.18841445,0.00019,2]
[320042152,1711111838155,-262.18841445,0.00019,2]
[320042153,1711111838165,-262.18841445,0.00019,2]
[320042156,1711111838174,-262.18841445,0.00019,2]
[320042158,1711111838184,-262.18841445,0.00019,2]
[320042160,1711111838194,-262.18841445,0.00019,2]
[320042162,1711111838204,-262.18841445,0.00019,2]
[320042164,1711111838215,-262.18841445,0.00019,2]
[320042166,1711111838225,-262.18841445,0.00019,2]
[320042168,1711111838234,-262.18841445,0.00019,2]
[320042170,1711111838243,-262.18841445,0.00019,2]
[320042172,1711111838252,-262.18841445,0.00019,2]
[320042174,1711111838261,-262.18841445,0.00019,2]
[320042176,1711111838270,-262.18841445,0.00019,2]
[320042178,1711111838280,-262.18841445,0.00019,2]
[320042180,1711111838289,-262.18841445,0.00019,2]
[320042181,1711111838298,-262.18841445,0.00019,2]
[320042184,1711111838308,-262.18841445,0.00019,2]
[320042186,1711111838318,-262.18841445,0.00019,2]
[320042188,1711111838327,-262.18841445,0.00019,2]
[320042190,1711111838337,-262.18841445,0.00019,2]
[320042192,1711111838346,-262.18841445,0.00019,2]
[320042193,1711111838355,-262.18841445,0.00019,2]
[320042196,1711111838365,-262.18841445,0.00019,2]
[320042197,1711111838374,-250.0,0.00019044,2]
[320042200,1711111838384,-167.0,0.00019133,2]
[320042202,1711111838393,-159.06,0.00019136,10]
[320042204,1711111838402,-3102.26,0.00019178,2]
[320042205,1711111838412,-163.65,0.0001918,2]
[320042208,1711111838422,-3843.36723217,0.000192,2]
[320042210,1711111838431,-301.21177874,0.00019202,2]
[320042212,1711111838441,-1000.0,0.00019204,2]
[320042214,1711111838450,-180.0,0.00019288,2]
[320042216,1711111838459,-473.94,0.00019456,2]
[320042218,1711111838471,-253.28,0.00019539,2]
[320042220,1711111838480,-301.21177874,0.00019592,2]
[320042222,1711111838490,-292.21,0.00019593,2]
[320042224,1711111838500,-1278.47979526,0.00019606,2]
[320042226,1711111838511,-167.0,0.00019744,2]
[320042228,1711111838525,-4079.61,0.00019833,2]
[320042230,1711111838535,-301.21177874,0.00019982,2]
[320042232,1711111838545,-5000.0,0.0002,2]
[320042234,1711111838554,-590.61224363,0.0002,2]
[320042236,1711111838564,-1247.90893269,0.0002,2]
[320042238,1711111838574,-5146.55055849,0.0002,2]
[320042240,1711111838587,-167.74,0.00020155,2]
[320042242,1711111838597,-167.0,0.00020356,2]
[320042244,1711111838607,-301.21177874,0.00020371,2]
[320042246,1711111838618,-1900.0,0.000207,7]
[320042248,1711111838628,-532.89415304,0.00020756,2]
[320042250,1711111838638,-341.93,0.00020775,2]
[320042252,1711111838649,-570.01051863,0.00020778,7]
[320042254,1711111838660,-235.01017711,0.00020779,2]
[320042256,1711111838671,-444.94455248,0.00020779,2]
[320042260,1711111838693,-160.32262991,0.00020779,2]
[320042262,1711111838709,-155.0,0.00020779,2]
[320042265,1711111838729,-155.0,0.00020779,2]
[320042267,1711111838740,-20397.0250363,0.0002079,2]
[320042269,1711111838750,-20397.02503626,0.0002079,2]
[320042271,1711111838761,-20397.02503626,0.0002079,2]
[320042273,1711111838771,-5616.16018257,0.0002079,2]
[320042275,1711111838781,-5616.16018249,0.0002079,2]
[320042277,1711111838792,-5616.16018249,0.0002079,2]
[320042279,1711111838803,-163.65,0.0002079,2]
[320042281,1711111838815,-3900.0,0.000208,7]
[320042282,1711111838827,-20397.02503626,0.00020856,2]
[320042283,1711111838837,-350.79692852,0.00020899,2]
[320042284,1711111838847,-5800.0,0.000209,7]
[320042285,1711111838857,-1278.47979526,0.00020933,2]
[320042286,1711111838867,-167.0,0.00020967,2]
[320042287,1711111838877,-163.65,0.0002099,2]
[320042288,1711111838887,-163.65,0.0002099,2]
[320042289,1711111838897,-163.65,0.0002099,2]
[320042290,1711111838906,-163.65,0.0002099,2]
[320042291,1711111838915,-163.65,0.0002099,2]
[320042292,1711111838925,-163.65,0.0002099,2]
[320042293,1711111838935,-163.65,0.0002099,2]
[320042294,1711111838944,-200.0,0.0002099,2]
[320042296,1711111838954,-200.0,0.0002099,2]
[320042298,1711111838968,-200.0,0.0002099,2]
[320042300,1711111838978,-200.0,0.0002099,2]
[320042302,1711111838988,-200.0,0.0002099,2]
[320042304,1711111838998,-158.0,0.0002099,2]
[320042339,1711111839322,-151.032221,0.00020998,2]
[320042343,1711111839350,-234.032221,0.00020998,2]
[320042345,1711111839359,-234.032221,0.00020998,2]
[320042347,1711111839370,-234.032221,0.00020998,2]
[320042349,1711111839380,-234.032221,0.00020998,2]
[320042351,1711111839390,-234.032221,0.00020998,2]
[320042353,1711111839399,-234.032221,0.00020998,2]
[320042355,1711111839409,-234.032221,0.00020998,2]
[320042357,1711111839418,-234.032221,0.00020998,2]
[320042359,1711111839428,-202.032221,0.00020998,2]
[320042361,1711111839437,-236.032221,0.00020998,2]
[320042363,1711111839447,-208.18721783,0.00020999,2]
[320042365,1711111839457,-1000.0,0.00020999,2]
[320042367,1711111839468,-200.0,0.00020999,2]
[320042369,1711111839478,-934.95908804,0.00020999,2]
[320042371,1711111839489,-155.0,0.00020999,3]
[320042373,1711111839506,-164.96805019,0.00020999,2]
[320042375,1711111839516,-5507.51645168,0.00020999,2]
[320042378,1711111839526,-286.80665938,0.00020999,2]
[320042381,1711111839536,-403.5154761,0.00020999,2]
[320042384,1711111839547,-1100.0,0.00020999,5]
[320042386,1711111839557,-6312.35071515,0.00020999,2]
[320042389,1711111839567,-199.45935512,0.00020999,2]
[320042392,1711111839577,-500.0,0.00020999,2]
[320042395,1711111839587,-441.23738847,0.00020999,2]
[320042398,1711111839597,-500.0,0.00020999,2]
[320042401,1711111839606,-500.0,0.00020999,2]
[320042403,1711111839616,-229.64400699,0.00020999,2]
[320042406,1711111839625,-500.0,0.00020999,2]
[320042409,1711111839634,-500.0,0.00020999,2]
[320042412,1711111839644,-500.0,0.00020999,2]
[320042414,1711111839653,-500.0,0.00020999,2]
[320042418,1711111839663,-500.0,0.00020999,2]
[320042420,1711111839673,-155.48422731,0.00020999,2]
[320042422,1711111839682,-500.0,0.00020999,2]
[320042424,1711111839691,-500.0,0.00020999,2]
[320042426,1711111839700,-500.0,0.00020999,2]
[320042428,1711111839712,-422.68898314,0.00020999,2]
[320042430,1711111839721,-500.0,0.00020999,2]
[320042432,1711111839730,-500.0,0.00020999,2]
[320042434,1711111839740,-500.0,0.00020999,2]
[320042436,1711111839749,-500.0,0.00020999,2]
[320042438,1711111839758,-500.0,0.00020999,2]
[320042440,1711111839767,-500.0,0.00020999,2]
[320042442,1711111839777,-403.95164907,0.00020999,2]
[320042444,1711111839786,-500.0,0.00020999,2]
[320042446,1711111839795,-500.0,0.00020999,2]
[320042448,1711111839805,-500.0,0.00020999,2]
[320042450,1711111839814,-500.0,0.00020999,2]
[320042452,1711111839823,-500.0,0.00020999,2]
[320042454,1711111839832,-403.67764567,0.00020999,2]
[320042456,1711111839841,-500.0,0.00020999,2]
[320042458,1711111839850,-500.0,0.00020999,2]
[320042460,1711111839860,-500.0,0.00020999,2]
[320042462,1711111839869,-500.0,0.00020999,2]
[320042464,1711111839878,-500.0,0.00020999,2]
[320042466,1711111839887,-500.0,0.00020999,2]
[320042468,1711111839896,-500.0,0.00020999,2]
[320042470,1711111839905,-500.0,0.00020999,2]
[320042472,1711111839914,-500.0,0.00020999,2]
[320042474,1711111839923,-500.0,0.00020999,2]
[320042476,1711111839932,-500.0,0.00020999,2]
[320042478,1711111839942,-500.0,0.00020999,2]
[320042480,1711111839951,-500.0,0.00020999,2]
[320042482,1711111839962,-500.0,0.00020999,2]
[320042484,1711111839971,-500.0,0.00020999,2]
[320042486,1711111839981,-500.0,0.00020999,2]
[320042488,1711111839990,-500.0,0.00020999,2]
[320042490,1711111840000,-500.0,0.00020999,2]
[320042492,1711111840009,-500.0,0.00020999,2]
[320042494,1711111840019,-500.0,0.00020999,2]
[320042496,1711111840028,-500.0,0.00020999,2]
[320042498,1711111840038,-500.0,0.00020999,2]
[320042500,1711111840047,-500.0,0.00020999,2]
[320042502,1711111840056,-500.0,0.00020999,2]
[320042504,1711111840066,-500.0,0.00020999,2]
[320042506,1711111840075,-500.0,0.00020999,2]
[320042508,1711111840084,-500.0,0.00020999,2]
[320042510,1711111840094,-500.0,0.00020999,2]
[320042512,1711111840104,-500.0,0.00020999,2]
[320042514,1711111840113,-500.0,0.00020999,2]
[320042516,1711111840123,-500.0,0.00020999,2]
[320042518,1711111840133,-500.0,0.00020999,2]
[320042520,1711111840142,-272.16123747,0.00020999,2]
[320042522,1711111840152,-500.0,0.00020999,2]
[320042524,1711111840162,-360.70294104,0.00020999,2]
[320042526,1711111840171,-500.0,0.00020999,2]
[320042528,1711111840181,-500.0,0.00020999,2]
[320042530,1711111840191,-500.0,0.00020999,2]
[320042532,1711111840201,-500.0,0.00020999,2]
[320042534,1711111840210,-500.0,0.00020999,2]
[320042536,1711111840220,-500.0,0.00020999,2]
[320042538,1711111840230,-500.0,0.00020999,2]
[320042540,1711111840239,-500.0,0.00020999,2]
[320042542,1711111840248,-500.0,0.00020999,2]
[320042544,1711111840258,-500.0,0.00020999,2]
[320042546,1711111840267,-500.0,0.00020999,2]
[320042548,1711111840276,-500.0,0.00020999,2]
[320042550,1711111840286,-500.0,0.00020999,2]
[320042552,1711111840295,-500.0,0.00020999,2]
[320042554,1711111840304,-500.0,0.00020999,2]
[320042556,1711111840314,-500.0,0.00020999,2]
[320042558,1711111840324,-644.85307174,0.00020999,2]
[320042560,1711111840333,-500.0,0.00020999,2]
[320042562,1711111840343,-500.0,0.00020999,2]
[320042564,1711111840352,-500.0,0.00020999,2]
[320042566,1711111840362,-500.0,0.00020999,2]
[320042568,1711111840371,-500.0,0.00020999,2]
[320042570,1711111840381,-500.0,0.00020999,2]
[320042572,1711111840390,-500.0,0.00020999,2]
[320042574,1711111840399,-500.0,0.00020999,2]
[320042577,1711111840409,-500.0,0.00020999,2]
[320042579,1711111840418,-500.0,0.00020999,2]
[320042581,1711111840427,-500.0,0.00020999,2]
[320042582,1711111840437,-500.0,0.00020999,2]
[320042584,1711111840446,-500.0,0.00020999,2]
[320042586,1711111840455,-500.0,0.00020999,2]
[320042589,1711111840467,-500.0,0.00020999,2]
[320042591,1711111840477,-500.0,0.00020999,2]
[320042593,1711111840487,-500.0,0.00020999,2]
[320042595,1711111840497,-404.98367464,0.00020999,2]
[320042596,1711111840508,-640.5,0.00020999,2]
[320042599,1711111840518,-192504.86023783,0.00021,2]
[320042664,1711111841156,-209567.62976163,0.00021,2]
[320042666,1711111841170,-4444.05000006,0.00021,2]
[320042668,1711111841182,-420341.38541875,0.00021,2]
[320042674,1711111841233,-27102.50236306,0.00021,2]
[320042675,1711111841266,-3523.14131305,0.00021,2]
[320042758,1711111842113,-4110.2973261,0.000184,2]
[320042761,1711111842127,-1877.87940042,0.000184,2]
[320042931,1711111843463,-40001.69957348,0.000184,2]
[320042932,1711111843475,-301.21177874,0.00020761,2]
[320042933,1711111843484,-51190.48123293,0.00021,2]
[320042941,1711111843578,-1775.85829747,0.00021,2]
[320043187,1711111845848,-155.0,0.0002076,2]
[320043190,1711111845857,-276.86386148,0.0002076,2]
[320043192,1711111845867,-244.23683852,0.00021,2]
[320043194,1711111845878,-146727.3742898,0.00021,2]
[320043196,1711111845890,-623.88,0.00021,2]
[320043198,1711111845902,-147911.85820757,0.00021,2]
[320043201,1711111845913,-931.37,0.00021,2]
[320043204,1711111845933,-7356.74752002,0.00021,2]
[320043206,1711111845944,-51520.00000002,0.00021,2]
[320043218,1711111846049,-1434.79165165,0.00021,2]
[320043221,1711111846064,-1488.3590197,0.00021,2]
[320043224,1711111846080,-742.42277525,0.00021,2]
[320043235,1711111846173,-522.88362862,0.00021,2]
[320043237,1711111846185,-4653.66294273,0.00021,2]
[320043240,1711111846196,-5487.76202675,0.00021,2]
[320043538,1711111849143,733.05532717,0.00013783,2]
[320045065,1711111865336,390.28665751,0.00026069,90]
[320045830,1711111936490,264.17889324,0.00026069,120]
[320045831,1711111951177,603.80071518,0.00015,2]
[320045832,1711112004080,236.30754535,0.00026056,30]
[320045834,1711112013035,258.00779064,0.00026056,120]
[320045835,1711112071554,147137.81871006,0.00015,2]
[320045836,1711112075854,594.14227291,0.00026056,120]
[320045837,1711112296446,11736.50518564,0.00026056,30]
[320045838,1711112388973,-600.0,0.000154,2]
[320045843,1711112889004,32184.04,0.00026055,30]
[320045844,1711112921453,170.96,0.00025578,120]
[320045845,1711112946257,-2597.0746,0.000154,2]
[320045853,1711113032075,-354.14727301,0.0001539,2]
[320045854,1711113032137,-6308.30818596,0.0001539,2]
[320045855,1711113032148,-12313.23889638,0.000154,2]
[320045856,1711113032158,-10759.31297796,0.000154,2]
[320045857,1711113032207,-2224.7093825,0.000154,2]
[320045858,1711113032220,-314.42749356,0.000154,2]
[320045859,1711113032269,-445.58659226,0.000154,2]
[320045860,1711113032282,-432.38722525,0.000154,2]
[320045896,1711113038108,-500.0,0.000154,2]
[320045897,1711113038120,-2011.64442036,0.000154,2]
[320045898,1711113038227,-1272.1452,0.000154,2]
[320045899,1711113038340,-22275.41218101,0.000154,2]
[320045900,1711113038350,-508.88,0.00015718,2]
[320045901,1711113038359,-154.73455763,0.00016072,2]
[320045902,1711113038368,-594.24,0.00016172,2]
[320045903,1711113038378,-1027.14,0.00017002,2]
[320045904,1711113038387,-170.96,0.00017052,2]
[320045905,1711113038395,-500.0,0.00017103,2]
[320045906,1711113038405,-250.0,0.00017142,2]
[320045907,1711113038414,-184.45,0.00017404,2]
[320045908,1711113038428,-800.0,0.00017525,2]
[320045909,1711113038438,-2072.69,0.00017627,2]
[320045910,1711113038447,-250.0,0.00017629,2]
[320045911,1711113038457,-595.17,0.00017682,4]
[320045913,1711113038466,-300.0,0.00017699,2]
[320045915,1711113038475,-1300.0,0.000177,6]
[320045917,1711113038484,-208.24,0.00017711,2]
[320045919,1711113038494,-2700.0,0.000178,6]
[320045920,1711113038504,-408.61867044,0.00017826,2]
[320045922,1711113038514,-448.4324,0.000179,2]
[320045924,1711113038524,-4363.3644,0.000179,2]
[320045926,1711113038534,-500.0,0.000179,2]
[320045928,1711113038544,-426.3153224,0.000179,2]
[320045929,1711113038553,-195.7876562,0.000179,2]
[320045931,1711113038562,-4100.0,0.000179,6]
[320045934,1711113038572,-508.88,0.00017982,2]
[320045936,1711113038582,-234.032221,0.00017998,2]
[320045938,1711113038591,-234.032221,0.00017998,2]
[320045940,1711113038600,-234.032221,0.00017998,2]
[320045942,1711113038609,-234.032221,0.00017998,2]
[320045943,1711113038619,-234.032221,0.00017998,2]
[320045945,1711113038628,-234.032221,0.00017998,2]
[320045947,1711113038637,-234.032221,0.00017998,2]
[320045949,1711113038646,-234.032221,0.00017998,2]
[320045951,1711113038655,-234.032221,0.00017998,2]
[320045952,1711113038664,-234.032221,0.00017998,2]
[320045953,1711113038677,-234.032221,0.00017998,2]
[320045954,1711113038686,-599.27979208,0.00017998,2]
[320045955,1711113038695,-302.0950219,0.00017999,2]
[320045956,1711113038706,-2614.79699532,0.00017999,2]
[320045957,1711113038715,-57923.85075335,0.00018,2]
[320045958,1711113038732,-424.88308538,0.00018,2]
[320045959,1711113039948,-277.1548179,0.00018,2]
[320045981,1711113043064,-250.0,0.00017048,2]
[320045982,1711113043074,-1036.23254,0.00018,2]
[320045983,1711113043283,-3018.95088615,0.00018,2]
[320045984,1711113043296,-2708.11740787,0.00018,2]
[320045985,1711113043501,-10420.64526942,0.00018,2]
[320045986,1711113043513,-1391.97619078,0.00018,2]
[320045997,1711113046128,-1168.4,0.00018,2]
[320045998,1711113046162,-96590.17110336,0.00018,2]
[320045999,1711113046176,-201365.78662995,0.00018,2]
[320046003,1711113446653,175.04,0.00013699,2]
[320046004,1711113495067,331.61,0.00025043,120]
[320046005,1711113505333,509.31,0.0001468,2]
[320046006,1711113892291,328.25591857,0.0001468,2]
[320046007,1711113894865,1807.36262001,0.00012,2]
[320046008,1711113924345,328.25591857,0.00012,2]
[320046009,1711113946252,301.79382917,0.00012,2]
[320046010,1711114010819,507.54,0.00014083,2]
[320046011,1711114149222,-200.98829991,0.00015212,2]
[320046012,1711114149242,-155.0,0.00015212,2]
[320046013,1711114149264,-155.0,0.00015213,2]
[320046014,1711114149284,-2166.55459343,0.00015213,2]
[320046015,1711114149304,-360.79039174,0.00015214,2]
[320046016,1711114149322,-520.60897951,0.00015216,2]
[320046017,1711114149342,-35027.94046212,0.00015224,2]
[320046018,1711114149362,-4000.0,0.00015225,2]
[320046019,1711114149381,-250.0,0.00015859,2]
[320046020,1711114149401,-2284.13,0.00015878,2]
[320046021,1711114149426,-343.56,0.00015952,2]
[320046022,1711114149447,-160.02,0.00015974,2]
[320046023,1711114149468,-360.0,0.00016024,2]
[320046024,1711114149489,-1685.19,0.00016081,2]
[320046025,1711114149510,-160.02,0.00016107,2]
[320046026,1711114149532,-150.0,0.00016113,2]
[320046027,1711114149557,-250.0,0.00016125,2]
[320046028,1711114149580,-167.2,0.00016189,2]
[320046029,1711114149603,-184.45,0.00016223,2]
[320046030,1711114149638,-160.02,0.0001624,2]
[320046031,1711114149660,-552.1674,0.00016246,2]
[320046032,1711114149681,-208.24,0.00016318,2]
[320046033,1711114149703,-2082.69,0.00016346,2]
[320046034,1711114149726,-507.54,0.00016347,2]
[320046035,1711114149750,-160.02,0.00016373,2]
[320046036,1711114149772,-500.0,0.00016438,2]
[320046037,1711114149793,-1000.0,0.00016492,2]
[320046038,1711114149819,-484.72991127,0.00016492,2]
[320046039,1711114149844,-1880.7832018,0.00016492,2]
[320046040,1711114149865,-155.45586233,0.00016493,2]
[320046041,1711114149887,-234.73665199,0.00016493,2]
[320046042,1711114149908,-358.68247128,0.00016493,2]
[320046043,1711114149929,-267.87154933,0.00016493,2]
[320046044,1711114149951,-704.0564632,0.00016493,2]
[320046045,1711114149972,-1133.12831699,0.00016493,2]
[320046046,1711114149992,-155.0,0.00016493,2]
[320046047,1711114150014,-262.24434515,0.00016493,2]
[320046048,1711114150033,-198.31978259,0.00016494,2]
[320046049,1711114150057,-754.7322729,0.00016494,2]
[320046050,1711114150076,-155.60226171,0.00016494,2]
[320046051,1711114150097,-1647.43844513,0.00016494,2]
[320046052,1711114150117,-1817.77368898,0.00016494,2]
[320046053,1711114150138,-640.0,0.00016496,2]
[320046054,1711114150159,-160.02,0.00016506,2]
[320046055,1711114150181,-595.17,0.00016552,4]
[320046056,1711114150201,-160.02,0.00016639,2]
[320046057,1711114150225,-154.73455762,0.00016666,2]
[320046058,1711114150247,-331.61,0.00016695,2]
[320046059,1711114150266,-300.0,0.00016766,2]
[320046060,1711114150286,-160.02,0.00016772,2]
[320046061,1711114150308,-9634.69398195,0.00016871,2]
[320046062,1711114150329,-184.45,0.00017068,2]
[320046063,1711114150350,-3120.98367985,0.00017098,2]
[320046064,1711114150372,-309.99204366,0.00017099,2]